bitfinex-derivatives/quotes_SOLF0:USTF0_20250705
["timestamp","ask_amount","ask_price","bid_price","bid_amount"]
[1751732763153,6.8078,146.86,146.84,246.24992654]
[1751732763357,6.8078,146.86,146.84,50.76992654]
[1751732763554,10.64492738,146.85,146.84,246.24992654]
[1751732763950,10.64492738,146.85,146.84,50.76992654]
[1751732764156,10.64492738,146.85,146.84,246.24992654]
[1751732764458,17.45292738,146.85,146.84,50.76992654]
[1751732764656,17.45292738,146.85,146.84,246.24992654]
[1751732766261,17.45292738,146.85,146.84,4.48992654]
[1751732766562,13.66391656,146.85,146.78,2.3192]
[1751732766760,10.64492738,146.84,146.81,198.49898918]
[1751732766956,3.01898918,146.85,146.81,198.49898918]
[1751732767157,17.44590992,146.84,146.81,205.30848918]
[1751732767359,6.8087,146.84,146.81,205.30848918]
[1751732767561,6.8087,146.84,146.81,9.82848918]
[1751732767762,6.8087,146.84,146.82,195.48]
[1751732769163,6.8081,146.85,146.82,202.2893]
[1751732769366,10.5985439,146.84,146.82,205.30828918]
[1751732769668,3.01898918,146.86,146.82,205.30828918]
[1751732769868,17.40573977,146.85,146.82,205.30828918]
[1751732770163,4.78262769,146.84,146.82,205.30828918]
[1751732770367,6.8082,146.85,146.82,205.30828918]
[1751732771769,6.8082,146.85,146.82,9.82828918]
[1751732771967,6.8082,146.85,146.83,195.5]
[1751732773469,6.8082,146.85,146.82,9.82828918]
[1751732773671,6.8082,146.85,146.83,195.5]
[1751732773859,6.7082,146.85,146.83,195.5]
[1751732774064,6.7082,146.85,146.83,198.51898918]
[1751732776272,10.77000151,146.89,146.84,3.01898918]
[1751732776565,10.77000151,146.89,146.83,195.5]
[1751732776566,10.59588848,146.88,146.83,195.5]
[1751732776769,10.59588848,146.87,146.86,6.8075]
[1751732776972,3.01898918,146.9,146.83,195.5]
[1751732777161,13.6162884,146.89,146.85,3.01898918]
[1751732777365,17.40419922,146.88,146.85,6.8077]
[1751732777570,6.8069,146.88,146.85,9.82668918]
[1751732777973,6.8069,146.88,146.86,3.01898918]
[1751732778873,6.8069,146.88,146.85,6.8077]
[1751732778874,6.8069,146.88,146.87,3.01898918]
[1751732779269,12.61358725,146.88,146.87,3.01898918]
[1751732779471,12.61358725,146.88,146.86,3.01898918]
[1751732779673,3.01898918,146.9,146.85,9.82678918]
[1751732779862,10.60072326,146.89,146.85,9.82678918]
[1751732780062,6.8069,146.88,146.85,9.82678918]
[1751732780466,3.01898918,146.89,146.85,3.01898918]
[1751732780667,6.8075,146.86,146.84,3.01898918]
[1751732781469,6.8072,146.87,146.84,198.55898918]
[1751732781673,6.8072,146.87,146.85,3.01898918]
[1751732782374,6.8072,146.87,146.84,195.54]
[1751732782575,6.8072,146.87,146.85,3.01898918]
[1751732782775,3.01898918,146.9,146.86,3.01898918]
[1751732782976,10.61870179,146.89,146.86,3.01898918]
[1751732783274,10.61870179,146.88,146.86,3.01898918]
[1751732783575,6.8063,146.89,146.86,9.82628918]
[1751732783776,10.61920226,146.88,146.86,9.82628918]
[1751732784076,6.8063,146.89,146.86,9.82628918]
[1751732784271,10.61925176,146.88,146.86,9.82628918]
[1751732784576,6.8063,146.89,146.86,9.82628918]
[1751732784877,10.61966502,146.88,146.86,9.82628918]
[1751732785073,6.8063,146.89,146.86,9.82628918]
[1751732785271,5.82533656,146.88,146.86,9.82628918]
[1751732785574,6.8063,146.89,146.86,9.82628918]
[1751732785779,5.82555774,146.88,146.86,9.82628918]
[1751732785970,6.8063,146.89,146.86,9.82628918]
[1751732786270,5.82555774,146.88,146.86,9.82628918]
[1751732786470,6.8063,146.89,146.86,9.82628918]
[1751732786672,5.82586941,146.88,146.86,9.82628918]
[1751732786870,6.8063,146.89,146.86,9.82628918]
[1751732787070,5.82587052,146.88,146.86,6.8073]
[1751732787270,6.8063,146.89,146.87,3.01898918]
[1751732787475,5.8262,146.88,146.87,3.01898918]
[1751732787974,5.8262,146.88,146.86,6.8073]
[1751732788276,6.8063,146.89,146.86,9.82628918]
[1751732788575,5.82654536,146.88,146.86,9.82628918]
[1751732788779,6.8063,146.89,146.86,9.82628918]
[1751732789070,5.82692549,146.88,146.86,9.82628918]
[1751732789375,6.8063,146.89,146.86,9.82628918]
[1751732789570,5.82730773,146.88,146.86,9.82628918]
[1751732789768,6.8063,146.89,146.86,9.82628918]
[1751732789969,5.82730415,146.88,146.86,9.82628918]
[1751732790274,6.8063,146.89,146.86,9.82628918]
[1751732790472,5.82801669,146.88,146.86,9.82628918]
[1751732790673,6.8066,146.88,146.86,9.82628918]
[1751732790866,3.01898918,146.9,146.86,9.82628918]
[1751732791062,5.82802165,146.89,146.87,3.01898918]
[1751732791278,12.63462165,146.88,146.87,3.01898918]
[1751732792075,5.82802165,146.88,146.87,9.82598918]
[1751732792277,5.82802165,146.88,146.87,3.01898918]
[1751732792577,3.01898918,146.91,146.87,3.01898918]
[1751732792774,10.63621957,146.9,146.87,3.01898918]
[1751732792978,3.01898918,146.91,146.87,3.01898918]
[1751732793278,10.63622695,146.9,146.87,3.01898918]
[1751732793471,3.01898918,146.91,146.87,3.01898918]
[1751732793672,6.8064,146.89,146.87,3.01898918]
[1751732794179,6.8066,146.88,146.85,53.0679]
[1751732794378,3.01898918,146.88,146.85,46.26]
[1751732794576,3.01898918,146.86,146.85,46.26]
[1751732794775,6.8083,146.85,146.82,205.32818918]
[1751732795174,3.01898918,146.85,146.81,51.69758918]
[1751732795373,6.8085,146.84,146.81,247.19758918]
[1751732795778,6.8085,146.84,146.81,51.69758918]
[1751732795975,6.8085,146.84,146.81,254.02728918]
[1751732796581,6.809,146.83,146.81,48.6786]
[1751732796782,6.809,146.83,146.81,247.19758918]
[1751732797682,6.809,146.83,146.81,51.69758918]
[1751732797882,6.809,146.83,146.81,244.1786]
[1751732799183,6.809,146.83,146.81,250.9883]
[1751732800687,6.8087,146.84,146.81,250.9883]
[1751732801490,6.8082,146.85,146.82,6.8093]
[1751732802488,6.8085,146.84,146.81,250.9882]
[1751732803989,6.8085,146.84,146.81,244.1786]
[1751732804286,6.8085,146.84,146.81,248.89851518]
[1751732804889,6.8085,146.84,146.81,255.70811518]
[1751732805192,6.8085,146.84,146.81,250.9882]
[1751732805390,6.8085,146.84,146.81,255.70811518]
[1751732805689,4.71991518,146.87,146.81,255.70811518]
[1751732805892,10.6159481,146.86,146.81,248.89851518]
[1751732806090,4.79587294,146.85,146.81,248.89851518]
[1751732806284,4.71991518,146.87,146.81,244.1786]
[1751732806592,10.61651162,146.86,146.81,244.1786]
[1751732806893,6.8091,146.83,146.81,244.1786]
[1751732808300,6.8091,146.83,146.81,48.6786]
[1751732808493,6.8091,146.83,146.82,195.54]
[1751732809100,6.8091,146.83,146.81,48.6786]
[1751732809294,6.8091,146.83,146.82,195.52]
[1751732810204,6.8086,146.84,146.82,195.52]
[1751732811994,6.8082,146.85,146.82,202.3293]
[1751732813000,6.8085,146.84,146.82,202.3293]
[1751732813198,6.8085,146.84,146.82,195.52]
[1751732814603,6.8082,146.85,146.82,202.3293]
[1751732816902,6.8082,146.85,146.82,6.8093]
[1751732817111,6.8082,146.85,146.83,195.5]
[1751732821199,6.8084,146.84,146.83,195.5]
[1751732831605,3.02003492,146.85,146.81,51.69863492]
[1751732831910,3.02003492,146.84,146.82,195.5]
[1751732832104,6.8089,146.83,146.82,195.5]
[1751732832306,3.02003492,146.84,146.82,195.5]
[1751732832710,6.8089,146.83,146.82,195.5]
[1751732833307,6.8094,146.82,146.81,46.26]
[1751732833500,6.8094,146.82,146.81,241.76]
[1751732837315,11.63024683,146.82,146.81,241.76]
[1751732839815,6.8094,146.82,146.81,241.76]
[1751732841112,6.8094,146.82,146.81,46.26]
[1751732841413,6.8094,146.82,146.81,241.78]
[1751732846922,12.73869427,146.82,146.81,241.78]
[1751732847919,12.73869427,146.82,146.78,9.1302]
[1751732848125,6.8105,146.8,146.79,195.52]
[1751732848518,6.8105,146.8,146.78,3.02003492]
[1751732848718,6.8105,146.8,146.79,195.52]
[1751732849929,6.8105,146.8,146.78,9.83123492]
[1751732850125,6.8105,146.8,146.79,195.52]
[1751732856732,6.8101,146.81,146.79,195.52]
[1751732857629,6.8101,146.81,146.79,3.02003492]
[1751732857826,6.8101,146.81,146.8,195.52]
[1751732858629,12.75164215,146.81,146.8,195.52]
[1751732858931,6.8103,146.8,146.78,3.02003492]
[1751732859121,6.8103,146.8,146.79,195.52]
[1751732866337,6.8103,146.8,146.77,55.4771]
[1751732866536,6.8108,146.79,146.78,195.52]
[1751732866837,6.8108,146.79,146.78,198.54003492]
[1751732867040,6.8108,146.79,146.78,195.52]
[1751732868026,6.8108,146.79,146.77,46.26]
[1751732868227,6.8108,146.79,146.78,195.52]
[1751732868837,3.02003492,146.81,146.78,195.52]
[1751732869032,5.94082205,146.8,146.78,195.52]
[1751732869338,3.02003492,146.81,146.78,195.52]
[1751732869636,5.94044927,146.8,146.78,195.52]
[1751732869835,6.8111,146.79,146.78,195.52]
[1751732871242,6.8111,146.79,146.77,49.28003492]
[1751732871439,6.8111,146.79,146.78,195.52]
[1751732874643,13.74610736,146.79,146.74,587.98]
[1751732874841,5.93568865,146.78,146.75,195.68]
[1751732875034,6.31919193,146.81,146.75,205.51233492]
[1751732875235,13.73857318,146.8,146.76,3.02003492]
[1751732875440,10.71853826,146.79,146.76,3.02003492]
[1751732875645,5.92893237,146.78,146.76,196.0]
[1751732875939,6.8117,146.77,146.76,199.02003492]
[1751732876136,6.8117,146.77,146.76,196.0]
[1751732876341,6.31919193,146.81,146.76,199.02003492]
[1751732876543,10.71849219,146.8,146.77,3.02003492]
[1751732876740,10.71849219,146.79,146.76,196.0]
[1751732876940,6.811,146.79,146.77,3.02003492]
[1751732877638,6.811,146.79,146.76,196.0]
[1751732877838,6.811,146.79,146.77,3.02003492]
[1751732878239,6.811,146.79,146.76,196.0]
[1751732878440,6.811,146.79,146.77,3.02003492]
[1751732879446,6.811,146.79,146.76,202.8121]
[1751732879641,6.811,146.79,146.77,3.02003492]
[1751732879843,6.8113,146.78,146.76,199.02003492]
[1751732880145,6.8113,146.78,146.76,196.0]
[1751732880439,6.31919193,146.82,146.76,199.02003492]
[1751732880645,6.811,146.79,146.77,3.02003492]
[1751732881843,6.8112,146.78,146.76,196.0]
[1751732882043,6.8112,146.78,146.77,3.02003492]
[1751732882245,6.8112,146.78,146.76,199.02003492]
[1751732882845,6.8117,146.77,146.76,199.02003492]
[1751732883443,6.8117,146.77,146.76,196.0]
[1751732884550,6.8114,146.78,146.76,196.0]
[1751732884748,6.8114,146.78,146.76,199.02003492]
[1751732885248,6.8117,146.77,146.76,196.0]
[1751732886449,6.8114,146.78,146.76,196.0]
[1751732887048,6.8114,146.78,146.76,199.02003492]
[1751732887749,6.8109,146.79,146.76,205.83213492]
[1751732887954,6.8109,146.79,146.77,3.02003492]
[1751732891355,6.8112,146.78,146.77,3.02003492]
[1751732893451,6.811,146.79,146.77,3.02003492]
[1751732894257,6.8112,146.78,146.77,3.02003492]
[1751732894857,6.8112,146.78,146.76,196.0]
[1751732895059,6.8112,146.78,146.76,199.02003492]
[1751732896446,9.33922685,146.82,146.77,3.02003492]
[1751732896652,10.67681995,146.81,146.79,3.02003492]
[1751732896848,5.90811606,146.8,146.79,3.02003492]
[1751732897658,12.71861606,146.8,146.79,3.02003492]
[1751732898458,17.49667118,146.8,146.77,6.8114]
[1751732898662,6.8105,146.8,146.79,3.02003492]
[1751732898858,17.49586181,146.8,146.79,3.02003492]
[1751732901162,17.49648055,146.8,146.79,3.02003492]
[1751732901859,5.90730651,146.8,146.79,3.02003492]
[1751732902269,6.8099,146.81,146.79,3.02003492]
[1751732902467,6.8099,146.81,146.8,3.02003492]
[1751732902768,12.72593102,146.81,146.8,3.02003492]
[1751732904675,5.91603102,146.81,146.8,9.83033492]
[1751732904869,9.33922685,146.85,146.8,3.02003492]
[1751732905068,17.87740098,146.84,146.81,3.02003492]
[1751732905264,10.72971892,146.83,146.81,3.02003492]
[1751732905475,10.72971892,146.82,146.81,3.02003492]
[1751732906664,17.53911892,146.82,146.81,3.02003492]
[1751732909879,17.53911892,146.82,146.8,3.02003492]
[1751732910079,6.8094,146.82,146.78,251.8808]
[1751732910282,6.8094,146.82,146.8,3.02003492]
[1751732911482,6.8094,146.82,146.81,3.02003492]
[1751732911683,17.56501744,146.82,146.81,3.02003492]
[1751732912482,17.56501744,146.82,146.78,251.8808]
[1751732912686,6.8094,146.82,146.81,3.02003492]
[1751732922896,3.02003492,146.8,146.78,46.5]
[1751732923087,5.90298291,146.79,146.78,46.5]
[1751732923584,12.71368291,146.79,146.78,46.5]
[1751732923886,17.53315449,146.79,146.78,46.5]
[1751732924091,20.55318941,146.79,146.78,46.5]
[1751732924292,6.8116,146.78,146.76,195.92]
[1751732926578,11.15099193,146.83,146.76,198.94003492]
[1751732926784,3.02003492,146.8,146.76,195.92]
[1751732926985,10.67059362,146.79,146.76,198.94003492]
[1751732927292,6.8112,146.78,146.76,195.92]
[1751732927590,6.8112,146.78,146.76,198.94003492]
[1751732928591,6.8117,146.77,146.76,198.94003492]
[1751732930793,6.8114,146.78,146.76,198.94003492]
[1751732933701,6.8117,146.77,146.76,198.94003492]
[1751732935588,6.8117,146.77,146.76,195.92]
[1751732935793,6.8117,146.77,146.76,3.02003492]
[1751732935993,6.8117,146.77,146.76,198.92003492]
[1751732940098,6.8114,146.78,146.76,198.92003492]
[1751732942098,3.02003492,146.79,146.77,195.82]
[1751732942289,5.85193104,146.78,146.77,195.82]
[1751732942488,5.85193104,146.78,146.75,3.02003492]
[1751732942691,3.02003492,146.79,146.76,195.82]
[1751732942890,5.85165956,146.78,146.76,195.82]
[1751732943102,6.8117,146.77,146.76,195.82]
[1751732944600,6.8114,146.78,146.76,198.84003492]
[1751732946002,6.8114,146.78,146.76,3.02003492]
[1751732946201,6.8114,146.78,146.77,195.8]
[1751732947904,6.811,146.79,146.77,195.8]
[1751732948100,4.8318,146.83,146.78,3.02003492]
[1751732948301,13.61720947,146.82,146.77,195.8]
[1751732948501,13.61720947,146.82,146.78,3.02003492]
[1751732948502,6.8106,146.8,146.78,3.02003492]
[1751732948701,7.85183492,146.83,146.79,3.02003492]
[1751732948903,10.59508876,146.82,146.79,3.02003492]
[1751732949104,17.40528876,146.81,146.79,3.02003492]
[1751732949303,6.8102,146.81,146.79,3.02003492]
[1751732950307,46.5,146.84,146.8,3.02003492]
[1751732950608,6.8099,146.81,146.8,3.02003492]
[1751732951707,6.8105,146.8,146.77,202.6115]
[1751732951908,6.8105,146.8,146.79,3.02003492]
[1751732952409,6.8107,146.79,146.78,3.02003492]
[1751732954113,6.31768802,146.85,146.78,3.02003492]
[1751732954412,20.78287381,146.84,146.8,3.02003492]
[1751732954607,13.63171155,146.83,146.79,3.02003492]
[1751732954807,10.61167663,146.82,146.79,3.02003492]
[1751732955008,6.8103,146.8,146.79,3.02003492]
[1751732956508,3.02003492,146.81,146.78,196.48]
[1751732956711,5.84986188,146.8,146.78,196.48]
[1751732956914,6.8107,146.79,146.78,199.50003492]
[1751732957512,6.8107,146.79,146.78,3.02003492]
[1751732959917,6.8107,146.79,146.77,199.46003492]
[1751732960317,6.8112,146.78,146.77,199.46003492]
[1751732962116,6.8112,146.78,146.77,196.4]
[1751732962319,6.8112,146.78,146.77,199.42003492]
[1751732962512,6.8109,146.79,146.77,199.42003492]
[1751732962713,3.02003492,146.81,146.77,199.42003492]
[1751732963011,10.64644956,146.8,146.77,199.42003492]
[1751732963212,6.811,146.79,146.77,199.42003492]
[1751732964420,3.02003492,146.81,146.77,199.42003492]
[1751732964421,6.8112,146.78,146.77,199.42003492]
[1751732965020,6.8112,146.78,146.77,196.4]
[1751732965320,6.8112,146.78,146.77,199.42003492]
[1751732965615,6.8112,146.78,146.77,3.02003492]
[1751732965817,6.8112,146.78,146.77,199.40003492]
[1751732970524,6.811,146.79,146.77,199.40003492]
[1751732971719,6.8112,146.78,146.77,199.40003492]
[1751732974425,6.8112,146.78,146.77,196.38]
[1751732974827,12.65768881,146.78,146.77,196.38]
[1751732976227,12.65768881,146.78,146.76,49.38003492]
[1751732976228,6.8117,146.77,146.76,46.36]
[1751732976428,6.8117,146.77,146.76,242.62]
[1751732977717,6.8117,146.77,146.76,46.36]
[1751732977921,6.8117,146.77,146.76,242.6]
[1751732978123,6.8114,146.78,146.76,242.6]
[1751732978325,6.8114,146.78,146.76,245.62003492]
[1751732979231,6.8114,146.78,146.76,242.6]
[1751732979530,6.8114,146.78,146.76,245.62003492]
[1751732980840,6.8114,146.78,146.76,242.6]
[1751732981132,6.8117,146.77,146.76,46.36]
[1751732981434,6.8117,146.77,146.76,242.54]
[1751732982932,12.63731759,146.77,146.76,242.54]
[1751732983133,15.65735251,146.77,146.76,242.54]
[1751732984032,6.8123,146.76,146.74,3.02003492]
[1751732984229,6.8123,146.76,146.75,196.32]
[1751732984733,6.8123,146.76,146.74,3.02003492]
[1751732984933,6.8123,146.76,146.75,196.32]
[1751732985535,6.8119,146.77,146.75,196.32]
[1751732986534,6.8119,146.77,146.75,199.34003492]
[1751732987030,6.8119,146.77,146.75,3.02003492]
[1751732987332,6.8119,146.77,146.76,196.3]
[1751732987533,12.64230461,146.77,146.76,196.3]
[1751732989233,6.8119,146.77,146.76,196.3]
[1751732997746,6.8119,146.77,146.75,3.02003492]
[1751732998044,6.8121,146.76,146.74,3.02003492]
[1751732998246,6.8121,146.76,146.75,196.16]
[1751732998950,3.02003492,146.79,146.75,199.18003492]
[1751732999150,10.58814633,146.78,146.75,196.16]
[1751732999351,3.02003492,146.79,146.75,3.02003492]
[1751732999548,6.8119,146.77,146.75,199.16003492]
[1751733000651,6.8121,146.76,146.75,199.16003492]
[1751733000847,6.8121,146.76,146.75,196.14]
[1751733001752,10.59003935,146.76,146.74,196.1]
[1751733001948,3.02003492,146.77,146.74,196.1]
[1751733002653,6.8129,146.75,146.73,196.1]
[1751733003958,6.8129,146.75,146.73,202.8135]
[1751733004147,6.31768802,146.8,146.73,196.0]
[1751733004354,10.58842722,146.79,146.78,3.02003492]
[1751733004654,5.82255372,146.79,146.78,3.02003492]
[1751733004849,3.02003492,146.82,146.78,3.02003492]
[1751733005054,12.90946474,146.81,146.79,3.02003492]
[1751733005248,10.59023333,146.8,146.79,3.02003492]
[1751733005653,17.40073333,146.8,146.79,3.02003492]
[1751733005860,17.40073333,146.8,146.77,207.61228833]
[1751733006060,6.8105,146.8,146.77,207.61228833]
[1751733008359,6.8108,146.79,146.77,202.8914]
[1751733009861,6.31768802,146.84,146.78,6.8112]
[1751733010065,10.55148185,146.83,146.78,11.53208833]
[1751733010362,17.6304502,146.82,146.78,4.72088833]
[1751733010564,6.8103,146.8,146.78,4.72088833]
[1751733012870,6.8103,146.8,146.77,251.6808]
[1751733021272,6.8103,146.8,146.78,6.8112]
[1751733021970,6.8103,146.8,146.77,251.6808]
[1751733025675,6.8108,146.79,146.77,244.8694]
[1751733026178,6.8112,146.78,146.77,2.2894]
[1751733026473,6.8112,146.78,146.77,198.2894]
[1751733026674,6.8112,146.78,146.77,2.2894]
[1751733026873,6.8112,146.78,146.76,46.38]
[1751733027076,6.8112,146.78,146.77,196.2]
[1751733027368,12.59017854,146.78,146.77,196.2]
[1751733028966,6.8112,146.78,146.77,196.2]
[1751733030977,6.31768802,146.82,146.77,199.22302963]
[1751733031279,8.78594376,146.81,146.77,196.2]
[1751733031578,6.8107,146.79,146.77,196.2]
[1751733033376,12.57416452,146.78,146.77,196.2]
[1751733034079,8.78599415,146.78,146.7,592.50875998]
[1751733034285,3.02302963,146.75,146.71,3.02302963]
[1751733034467,3.02302963,146.76,146.72,196.64]
[1751733035481,6.8129,146.75,146.72,203.4537]
[1751733035675,6.8129,146.75,146.72,196.64]
[1751733036375,6.8129,146.75,146.72,199.66302963]
[1751733036578,6.31768802,146.8,146.74,3.02302963]
[1751733036781,2.3701,146.83,146.77,3.02302963]
[1751733037080,6.8102,146.81,146.79,3.02302963]
[1751733037883,6.8102,146.81,146.78,203.6312]
[1751733038180,6.8096,146.82,146.78,203.6312]
[1751733038381,4.72086162,146.85,146.78,203.6312]
[1751733038575,5.71512328,146.84,146.78,203.6312]
[1751733038778,5.71512328,146.83,146.78,203.6312]
[1751733038974,12.52462328,146.82,146.78,203.6312]
[1751733039179,4.72086162,146.85,146.78,203.6312]
[1751733039380,5.71505913,146.84,146.78,203.6312]
[1751733039575,6.8098,146.82,146.78,203.6312]
[1751733039977,4.72086162,146.85,146.78,203.6312]
[1751733040177,5.71468137,146.84,146.78,203.6312]
[1751733040379,5.71468137,146.83,146.78,196.82]
[1751733040579,5.71468137,146.82,146.78,196.82]
[1751733040882,6.8101,146.81,146.78,196.82]
[1751733041977,6.8101,146.81,146.78,203.6312]
[1751733043381,6.31768802,146.86,146.79,4.72086162]
[1751733043686,5.74551726,146.85,146.81,4.72086162]
[1751733043885,6.8083,146.85,146.82,243.34]
[1751733044982,4.72086162,146.88,146.82,243.34]
[1751733045183,5.74470512,146.87,146.82,243.34]
[1751733045384,5.74470512,146.86,146.82,243.34]
[1751733045583,5.74470512,146.85,146.82,243.34]
[1751733045785,11.03854964,146.88,146.82,243.34]
[1751733045979,5.74331917,146.87,146.82,243.34]
[1751733046180,5.74331917,146.86,146.82,243.34]
[1751733046380,5.74331917,146.85,146.82,243.34]
[1751733046682,6.8084,146.85,146.82,243.34]
[1751733047285,6.8085,146.84,146.82,243.34]
[1751733049684,6.8089,146.83,146.82,243.34]
[1751733050486,6.8086,146.84,146.82,196.84]
[1751733050987,6.8089,146.83,146.82,196.84]
[1751733051287,6.31768802,146.88,146.82,196.84]
[1751733051490,6.8087,146.84,146.82,196.84]
[1751733052782,4.72086162,146.87,146.8,2.4046]
[1751733052989,4.72086162,146.85,146.81,196.84]
[1751733053192,5.77294079,146.84,146.81,196.84]
[1751733053488,6.8094,146.82,146.81,196.84]
[1751733055589,11.65737523,146.82,146.81,196.84]
[1751733056590,11.6573571,146.82,146.81,196.84]
[1751733056789,6.8094,146.82,146.81,196.84]
[1751733057190,4.72086162,146.83,146.79,48.7328]
[1751733057390,4.72086162,146.81,146.79,243.18]
[1751733057600,10.60065384,146.8,146.79,243.18]
[1751733057783,10.60065384,146.8,146.79,196.8]
[1751733057987,10.60065384,146.8,146.75,46.72]
[1751733057988,6.8111,146.79,146.78,196.8]
[1751733060692,6.8113,146.78,146.77,196.88]
[1751733061292,6.8113,146.78,146.77,196.9]
[1751733062200,6.8113,146.78,146.75,53.5323]
[1751733062498,6.8113,146.78,146.76,196.86]
[1751733069404,6.811,146.79,146.76,203.672]
[1751733069605,7.11669293,146.83,146.78,4.72086162]
[1751733069806,4.78178486,146.82,146.79,196.8]
[1751733069998,4.72086162,146.85,146.79,196.8]
[1751733070198,6.8093,146.83,146.79,203.6104]
[1751733070395,6.8093,146.83,146.79,196.8]
[1751733070599,6.8093,146.83,146.79,199.1334]
[1751733070799,6.8093,146.83,146.8,6.8102]
[1751733070999,6.8093,146.83,146.8,53.5302]
[1751733076510,6.8098,146.81,146.8,46.72]
[1751733076808,6.8098,146.81,146.8,243.36]
[1751733077206,6.8098,146.81,146.8,46.72]
[1751733078309,6.8103,146.8,146.79,196.62]
[1751733080007,6.8103,146.8,146.79,196.6]
[1751733083609,6.81,146.81,146.79,196.6]
[1751733085111,6.8103,146.8,146.79,196.6]
[1751733085314,4.82015624,146.8,146.79,196.5]
[1751733085509,4.72267038,146.82,146.79,196.5]
[1751733085710,6.8103,146.8,146.79,196.5]
[1751733085914,4.82007872,146.8,146.79,196.5]
[1751733086111,4.84930564,146.83,146.79,196.64]
[1751733086418,6.8105,146.8,146.79,196.64]
[1751733086716,6.8101,146.81,146.79,196.64]
[1751733087819,5.74258091,146.8,146.74,46.64]
[1751733088014,4.72267038,146.82,146.75,196.64]
[1751733088319,6.8111,146.79,146.76,196.9]
[1751733088916,6.8113,146.78,146.76,196.9]
[1751733089607,6.8113,146.78,146.75,6.8123]
[1751733089911,4.72267038,146.8,146.74,46.64]
[1751733090111,10.57230015,146.79,146.73,4.6423]
[1751733090414,15.28876497,146.78,146.74,196.92]
[1751733090617,5.73479495,146.77,146.74,196.92]
[1751733090820,6.813,146.75,146.74,196.92]
[1751733093021,4.72564362,146.8,146.74,201.64564362]
[1751733093215,4.82688039,146.79,146.74,201.64564362]
[1751733093414,6.811,146.79,146.76,6.812]
[1751733093616,6.811,146.79,146.77,196.94]
[1751733095018,4.72564362,146.83,146.77,196.94]
[1751733095219,12.84192787,146.82,146.77,196.94]
[1751733095520,10.49629712,146.81,146.77,196.94]
[1751733095713,4.77588898,146.8,146.77,196.94]
[1751733095912,4.72564362,146.83,146.77,196.94]
[1751733096121,17.63886125,146.82,146.77,196.94]
[1751733096327,10.4969446,146.81,146.77,196.94]
[1751733096519,11.58672614,146.8,146.77,203.7516]
[1751733096719,6.8104,146.8,146.77,203.7516]
[1751733097024,4.72564362,146.83,146.77,196.94]
[1751733097229,6.811,146.79,146.77,196.94]
[1751733098124,4.72564362,146.81,146.76,243.48]
[1751733098321,12.80676662,146.8,146.76,243.48]
[1751733098519,6.8117,146.77,146.76,243.48]
[1751733101427,6.8117,146.77,146.74,6.8129]
[1751733101628,6.8117,146.77,146.75,196.88]
[1751733103426,6.8117,146.77,146.74,53.4729]
[1751733103626,6.8117,146.77,146.76,196.86]
[1751733104326,6.8117,146.77,146.76,196.82]
[1751733104530,6.8117,146.77,146.74,53.4729]
[1751733104740,6.8117,146.77,146.76,196.8]
[1751733105842,6.8117,146.77,146.74,53.4729]
[1751733106138,6.8117,146.77,146.75,196.8]
[1751733107640,6.8126,146.75,146.74,46.66]
[1751733107837,4.72564362,146.8,146.74,243.44]
[1751733108039,12.82239751,146.79,146.74,243.44]
[1751733108241,6.812,146.77,146.74,243.44]
[1751733108442,4.72564362,146.8,146.74,243.44]
[1751733108736,6.8126,146.75,146.74,243.44]
[1751733108937,4.72564362,146.78,146.72,2.4417]
[1751733109244,4.72564362,146.78,146.71,2.3891]
[1751733109245,17.61703166,146.77,146.73,196.72]
[1751733109434,6.813,146.75,146.73,196.72]
[1751733110242,6.8131,146.74,146.73,196.72]
[1751733111440,4.72564362,146.74,146.69,1.18587178]
[1751733111644,4.72564362,146.74,146.7,196.7]
[1751733112142,4.72564362,146.74,146.71,196.68]